bitfinex-derivatives/quotes_BTCF0:USTF0_20241116
["timestamp","ask_amount","ask_price","bid_price","bid_amount"]
[1731798902285,0.10511138,90603.0,90577.0,0.08992]
[1731798902509,0.055167,90583.0,90582.0,0.00675557]
[1731798902682,0.055176,90569.0,90568.0,0.0051]
[1731798902903,0.055177,90567.0,90566.0,0.08992]
[1731798903310,0.055177,90567.0,90566.0,0.11050157]
[1731798903480,0.055177,90567.0,90566.0,0.20042157]
[1731798903695,0.0051,90572.0,90566.0,0.20042157]
[1731798903878,0.0051,90572.0,90571.0,0.10511138]
[1731798904086,0.0051,90572.0,90566.0,0.25559857]
[1731798904298,0.0051,90572.0,90566.0,0.09004934]
[1731798904299,0.055176,90569.0,90566.0,0.09004934]
[1731798904490,0.055177,90568.0,90567.0,0.11041]
[1731798906485,0.0051,90572.0,90567.0,0.21552138]
[1731798906688,0.060274,90572.0,90567.0,0.21552138]
[1731798906986,0.060274,90572.0,90567.0,0.27069838]
[1731798907189,0.060274,90572.0,90566.0,0.00012934]
[1731798907190,0.055177,90567.0,90566.0,0.00012934]
[1731798908099,0.415977,90567.0,90566.0,0.00012934]
[1731798910502,0.415977,90567.0,90566.0,1.36e-06]
[1731798914477,0.3608,90567.0,90555.0,0.05767843]
[1731798914674,0.055184,90556.0,90555.0,0.05767843]
[1731798915071,0.055178,90566.0,90555.0,0.2003761]
[1731798915271,0.3608,90567.0,90555.0,0.24476675]
[1731798915272,0.055184,90556.0,90555.0,0.24476675]
[1731798915483,0.055184,90556.0,90555.0,0.24487014]
[1731798915679,0.055184,90556.0,90555.0,0.15491014]
[1731798915980,0.055184,90556.0,90555.0,0.00010339]
[1731798916161,0.055184,90556.0,90555.0,3.9e-07]
[1731798917870,0.055184,90556.0,90540.0,0.00165664]
[1731798917871,0.055193,90541.0,90540.0,0.00165664]
[1731798918871,0.055193,90541.0,90540.0,0.00178338]
[1731798923998,0.36220001,90548.0,90540.0,0.16742419]
[1731798924280,0.05519,90546.0,90541.0,0.055192]
[1731798924481,0.36224,90548.0,90541.0,0.055192]
[1731798924668,0.36224,90548.0,90540.0,0.11223119]
[1731798924669,0.055192,90543.0,90540.0,0.00178338]
[1731798924863,0.055192,90543.0,90542.0,0.11044354]
[1731798925268,0.36220001,90548.0,90540.0,0.00178338]
[1731798925468,0.055187,90551.0,90542.0,0.46591138]
[1731798925671,0.36220001,90558.0,90542.0,0.46591138]
[1731798925874,0.36220001,90558.0,90542.0,0.52110338]
[1731798925875,0.05519,90546.0,90542.0,0.52110338]
[1731798926077,0.055191,90545.0,90543.0,0.11044537]
[1731798926384,0.055191,90545.0,90543.0,0.20040537]
[1731798926776,0.055193,90541.0,90540.0,0.00178338]
[1731798926975,0.055193,90541.0,90540.0,0.09174338]
[1731798929580,0.055193,90541.0,90540.0,0.01474338]
[1731798930496,0.055193,90541.0,90540.0,0.01483306]
[1731798931700,0.055193,90541.0,90540.0,8.968e-05]
[1731798932184,0.1855775,90541.0,90540.0,8.968e-05]
[1731798932787,0.00140001,90542.0,90540.0,0.16573049]
[1731798933094,0.1303845,90546.0,90543.0,0.055192]
[1731798933379,0.05519,90546.0,90543.0,0.055192]
[1731798933586,0.1303845,90547.0,90545.0,0.05519]
[1731798933805,0.055186,90552.0,90546.0,0.0309]
[1731798933806,0.1303845,90548.0,90546.0,0.0309]
[1731798933977,0.1303845,90550.0,90546.0,0.086089]
[1731798934284,0.1303845,90550.0,90547.0,0.11044293]
[1731798934478,0.1855725,90549.0,90547.0,0.11044293]
[1731798935178,0.1303845,90548.0,90547.0,0.11044293]
[1731798935379,0.055188,90549.0,90547.0,0.11044293]
[1731798935380,0.1855725,90549.0,90547.0,0.11044293]
[1731798936087,0.055188,90549.0,90547.0,0.11044293]
[1731798936277,0.1855725,90549.0,90547.0,0.11044293]
[1731798937286,0.055188,90549.0,90546.0,0.03087242]
[1731798937589,0.1855725,90549.0,90548.0,0.11043866]
[1731798937782,0.055191,90544.0,90540.0,8.968e-05]
[1731798938083,0.13107995,90547.0,90540.0,8.968e-05]
[1731798938285,0.13107995,90547.0,90541.0,0.11043866]
[1731798938789,0.13107995,90547.0,90545.0,0.05519]
[1731798939177,0.13107995,90548.0,90545.0,0.05519]
[1731798939489,0.13107995,90546.0,90545.0,0.05519]
[1731798939990,0.13107995,90546.0,90545.0,0.1656311]
[1731798940181,0.055188,90550.0,90545.0,0.1656311]
[1731798940373,0.055188,90550.0,90546.0,0.05519]
[1731798940578,0.16348875,90548.0,90546.0,0.05519]
[1731798940775,0.21867675,90550.0,90546.0,0.05519]
[1731798940976,0.21867675,90550.0,90547.0,0.11044171]
[1731798940977,0.16348875,90550.0,90547.0,0.11044171]
[1731798941284,0.16348875,90550.0,90542.0,0.08984]
[1731798941285,0.16348875,90550.0,90545.0,0.10511138]
[1731798941489,0.00140001,90553.0,90551.0,0.055186]
[1731798941692,0.00140001,90553.0,90548.0,0.11043805]
[1731798941693,0.21867375,90554.0,90552.0,0.13841138]
[1731798941991,0.055185,90554.0,90553.0,0.20027805]
[1731798942393,0.21867375,90554.0,90553.0,0.20027805]
[1731798942597,0.21867375,90554.0,90541.0,0.11038081]
[1731798942598,0.05519,90545.0,90541.0,0.11038081]
[1731798942894,0.055189,90547.0,90546.0,0.08984]
[1731798943793,0.055189,90547.0,90546.0,0.20028049]
[1731798944089,0.16395321,90549.0,90546.0,0.56108049]
[1731798944290,0.16395321,90550.0,90548.0,0.10511138]
[1731798944485,0.36224,90554.0,90548.0,0.10511138]
[1731798944486,0.16395321,90551.0,90548.0,0.08329938]
[1731798944683,0.16395321,90551.0,90550.0,0.055187]
[1731798945200,0.16395321,90551.0,90549.0,0.11043927]
[1731798945201,0.36220001,90554.0,90551.0,0.055187]
[1731798945401,0.36220001,90554.0,90552.0,0.055186]
[1731798945402,0.3608,90554.0,90552.0,0.055186]
[1731798945693,0.3608,90554.0,90553.0,0.055185]
[1731798945897,0.3608,90554.0,90553.0,0.16562061]
[1731798946081,0.16408254,90559.0,90553.0,0.44171561]
[1731798946398,0.00012933,90559.0,90558.0,0.055182]
[1731798946598,0.00012933,90559.0,90558.0,0.145022]
[1731798946889,0.13118554,90570.0,90568.0,0.055176]
[1731798947096,0.5569865,90580.0,90569.0,0.51374]
[1731798947097,0.13118554,90576.0,90569.0,0.51374]
[1731798947307,0.13118554,90582.0,90579.0,0.10511138]
[1731798947590,0.55838651,90590.0,90583.0,0.055167]
[1731798947591,0.41736301,90590.0,90583.0,0.055167]
[1731798947778,0.41736301,90590.0,90587.0,0.10511138]
[1731798948293,0.055164,90589.0,90587.0,0.10511138]
[1731798948599,0.00140001,90590.0,90587.0,0.47120878]
[1731798948823,7.865e-05,90593.0,90587.0,0.80236878]
[1731798949001,7.865e-05,90593.0,90592.0,0.16027338]
[1731798949202,0.055152,90609.0,90592.0,0.16027338]
[1731798949203,0.055152,90609.0,90592.0,0.19495138]
[1731798949411,0.055152,90609.0,90604.0,0.10511138]
[1731798950290,0.055152,90609.0,90605.0,0.11038441]
[1731798950291,0.05523004,90609.0,90605.0,0.11038441]
[1731798951193,7.804e-05,90609.0,90605.0,0.11038441]
[1731798952401,0.055153,90607.0,90605.0,0.11038441]
[1731798953797,7.804e-05,90609.0,90603.0,0.08984]
[1731798953995,7.804e-05,90609.0,90608.0,0.10511138]
[1731798954602,7.804e-05,90609.0,90608.0,0.3053163]
[1731798955505,0.49708554,90638.0,90608.0,0.74150768]
[1731798955709,0.055139,90629.0,90625.0,0.10511138]
[1731798956199,0.36220001,90638.0,90625.0,0.10511138]
[1731798956506,0.36220001,90638.0,90621.0,0.08984]
[1731798956507,0.00012211,90634.0,90633.0,0.10511138]
[1731798957601,0.00012211,90634.0,90633.0,0.21544585]
[1731798958500,0.00012211,90634.0,90633.0,0.30524585]
[1731798959194,0.00012211,90634.0,90633.0,0.36038285]
[1731798959500,0.00012211,90634.0,90633.0,0.25527147]
[1731798959701,0.00012211,90634.0,90633.0,0.20013447]
[1731798960007,0.00012211,90634.0,90617.0,0.0332]
[1731798960008,0.10523349,90634.0,90617.0,0.0332]
[1731798960300,0.10523349,90634.0,90614.0,0.00165476]
[1731798960301,0.3608,90624.0,90614.0,0.00165476]
[1731798960604,0.0628,90633.0,90618.0,0.11033447]
[1731798960605,0.0956,90633.0,90618.0,0.11033447]
[1731798960816,0.0956,90633.0,90614.0,0.10676614]
[1731798961111,0.3608,90626.0,90615.0,0.08968]
[1731798961293,0.055147,90616.0,90614.0,0.00165476]
[1731798961493,0.055147,90616.0,90614.0,0.10676614]
[1731798961691,0.055147,90616.0,90615.0,0.1103503]
[1731798962316,0.3608,90626.0,90616.0,0.055147]
[1731798962726,0.3608,90626.0,90617.0,0.0303]
[1731798963030,0.3608,90626.0,90617.0,0.14065639]
[1731798963433,0.055141,90627.0,90617.0,0.14065639]
[1731798964322,0.0956,90633.0,90617.0,0.14065639]
[1731798964630,0.055143,90623.0,90617.0,0.14065639]
[1731798965132,0.055143,90623.0,90618.0,0.08968]
[1731798965926,0.0956,90633.0,90614.0,0.00165476]
[1731798965927,0.3608,90619.0,90614.0,0.00165476]
[1731798966133,0.055148,90615.0,90614.0,0.00165476]
[1731798969677,0.3608,90615.0,90600.0,0.08968]
[1731798969934,0.3608,90615.0,90594.0,0.3608]
[1731798969935,0.055152,90608.0,90606.0,0.11035761]
[1731798970339,0.055152,90608.0,90599.0,0.08968]
[1731798970607,0.3608,90615.0,90599.0,0.08968]
[1731798970724,0.3608,90615.0,90600.0,0.11036674]
[1731798971278,0.3608,90625.0,90606.0,0.10511138]
[1731798971812,0.3608,90625.0,90600.0,0.11036674]
[1731798971813,0.3608,90617.0,90607.0,0.00419949]
[1731798972328,0.3608,90617.0,90598.0,0.08968]
[1731798972329,0.3608,90608.0,90598.0,0.08968]
[1731798972336,0.0631,90607.0,90599.0,0.00419927]
[1731798972346,0.0631,90607.0,90600.0,0.00419927]
[1731798972525,0.055157,90599.0,90598.0,0.08968]
[1731798972640,0.415957,90599.0,90598.0,0.08968]
[1731798972856,0.055158,90598.0,90591.0,0.08968]
[1731798973045,0.055162,90592.0,90591.0,0.08968]
[1731798973233,0.055162,90592.0,90587.0,0.02217256]
[1731798973234,0.055162,90592.0,90589.0,0.11037101]
[1731798973537,0.055162,90592.0,90590.0,0.08968]
[1731798974540,0.055162,90592.0,90591.0,0.11038685]
[1731798978532,0.41735801,90599.0,90591.0,0.11038685]
[1731798979036,0.41735801,90599.0,90595.0,0.16027138]
[1731798979037,0.3608,90599.0,90595.0,0.16027138]
[1731798979245,0.3608,90599.0,90597.0,0.055158]
[1731798979437,0.13118554,90602.0,90597.0,0.415958]
[1731798979626,0.13118554,90602.0,90598.0,0.19753571]
[1731798979830,0.13118554,90602.0,90598.0,0.22773571]
[1731798980344,0.13118554,90602.0,90600.0,0.055156]
[1731798980547,0.08118554,90602.0,90600.0,0.055156]
[1731798980841,0.08118554,90602.0,90601.0,0.10006731]
[1731798981048,0.08118554,90602.0,90601.0,0.20009527]
[1731798981243,0.055164,90588.0,90587.0,9.847e-05]
[1731798981852,0.055164,90588.0,90580.0,0.00165582]
[1731798981853,0.43627138,90588.0,90547.0,0.75657841]
[1731798982040,0.055181,90561.0,90551.0,0.22683138]
[1731798982236,0.055181,90561.0,90560.0,0.27485116]
[1731798982438,0.3608,90563.0,90551.0,0.08972]
[1731798982646,0.055185,90553.0,90551.0,0.08972]
[1731798982844,0.055185,90553.0,90552.0,0.12077466]
[1731798983036,0.055185,90553.0,90552.0,0.11050292]
[1731798983347,0.055185,90553.0,90552.0,7.951e-05]
[1731798983549,0.055185,90553.0,90552.0,0.11050292]
[1731798983939,9.97e-05,90562.0,90552.0,0.9076943]
[1731798984131,9.97e-05,90562.0,90561.0,0.10511138]
[1731798984532,9.97e-05,90562.0,90554.0,0.10511138]
[1731798984741,0.055182,90559.0,90555.0,0.00418325]
[1731798984948,0.055183,90558.0,90556.0,0.00418325]
[1731798985147,0.055183,90558.0,90557.0,0.00418325]
[1731798988128,9.97e-05,90562.0,90557.0,0.004153]
[1731798988307,0.055185,90554.0,90552.0,7.951e-05]
[1731798988508,0.055185,90554.0,90553.0,0.00415292]
[1731798988714,0.055185,90554.0,90553.0,0.11042463]
[1731798988922,0.055181,90560.0,90553.0,0.11042463]
[1731798989120,9.97e-05,90562.0,90557.0,0.055183]
[1731798989422,9.97e-05,90562.0,90561.0,0.10511138]
[1731798989722,9.97e-05,90562.0,90561.0,0.09383681]
[1731798990111,9.97e-05,90562.0,90561.0,0.19894819]
[1731798990315,9.97e-05,90562.0,90561.0,0.21969282]
[1731798990512,9.97e-05,90562.0,90561.0,0.30937282]
[1731798990824,9.97e-05,90562.0,90561.0,0.3197243]
[1731798992323,9.97e-05,90562.0,90561.0,0.12493292]
[1731798992521,9.97e-05,90562.0,90561.0,0.20426144]
[1731798994621,9.97e-05,90562.0,90561.0,0.11458144]
[1731798994814,9.97e-05,90562.0,90561.0,0.20426144]
[1731798995008,9.97e-05,90562.0,90561.0,0.20431841]
[1731798997733,9.97e-05,90562.0,90561.0,0.30942979]
[1731798998926,9.97e-05,90562.0,90561.0,0.30521601]
[1731798999125,9.97e-05,90562.0,90561.0,0.30942355]
[1731798999319,9.97e-05,90562.0,90561.0,0.30521601]
[1731798999517,9.97e-05,90562.0,90561.0,0.30942538]
[1731799002435,9.97e-05,90562.0,90561.0,0.204314]
[1731799002644,9.97e-05,90562.0,90561.0,0.21045634]
[1731799002818,9.97e-05,90562.0,90561.0,0.13345634]
[1731799003016,9.97e-05,90562.0,90561.0,0.12310463]
[1731799005628,0.3608997,90562.0,90561.0,0.03342463]
[1731799005831,0.055183,90557.0,90553.0,0.34274451]
[1731799006029,0.055185,90554.0,90550.0,0.19787951]
[1731799006222,0.055185,90554.0,90547.0,0.45048]
[1731799006223,0.055185,90554.0,90551.0,0.19787951]
[1731799006623,0.055185,90554.0,90550.0,0.19787951]
[1731799006819,0.055185,90554.0,90547.0,0.45048]
[1731799006820,0.055185,90554.0,90547.0,0.64835951]
[1731799007031,0.055185,90554.0,90547.0,0.45048]
[1731799008929,0.055185,90554.0,90548.0,0.055188]
[1731799009121,0.055185,90554.0,90547.0,0.45048]
[1731799010523,0.055185,90554.0,90547.0,0.08968]
[1731799010724,0.055185,90554.0,90548.0,0.08968]
[1731799011124,0.055185,90554.0,90548.0,0.28755951]
[1731799011624,0.055185,90554.0,90548.0,0.08968]
[1731799011826,0.055185,90554.0,90547.0,0.25306851]
[1731799012025,0.055185,90554.0,90548.0,0.08972]
[1731799015627,0.055185,90554.0,90544.0,0.08972]
[1731799016028,0.055185,90554.0,90542.0,0.00165639]
[1731799016237,0.0536847,90553.0,90542.0,0.00165639]
[1731799016632,0.0536847,90553.0,90552.0,6.16e-06]
[1731799016940,0.3049205,90554.0,90552.0,6.16e-06]
[1731799017129,0.0536847,90553.0,90552.0,6.16e-06]
[1731799017733,0.0536847,90553.0,90541.0,0.08972]
[1731799017734,0.055192,90542.0,90541.0,0.01438255]
[1731799018740,0.055192,90542.0,90541.0,0.01449189]
[1731799022030,0.055192,90542.0,90541.0,0.00010934]
[1731799024436,0.086792,90542.0,90541.0,0.00010934]
[1731799027477,0.055192,90542.0,90541.0,0.00010934]
[1731799027677,0.3608,90544.0,90541.0,0.00010934]
[1731799027974,0.3608,90544.0,90542.0,0.055192]
[1731799028161,0.3608,90544.0,90542.0,0.088892]
[1731799028561,0.00140001,90560.0,90556.0,0.055183]
[1731799028764,0.00165698,90561.0,90556.0,0.055183]
[1731799028765,0.00165698,90561.0,90557.0,0.08968]
[1731799028973,0.00165698,90561.0,90560.0,0.055181]
[1731799029863,0.00165698,90561.0,90560.0,0.16562576]
[1731799030271,0.0308,90584.0,90560.0,0.16562576]
[1731799030463,0.055166,90585.0,90571.0,0.46591138]
[1731799030669,0.055163,90590.0,90578.0,0.10511138]
[1731799030888,0.36220001,90596.0,90578.0,0.10511138]
[1731799030889,0.055164,90588.0,90582.0,0.055167]
[1731799031062,0.3608,90588.0,90583.0,0.08968]
[1731799031390,0.3608,90588.0,90579.0,0.14101061]
[1731799031391,0.3608,90588.0,90575.0,0.08968]
[1731799031392,0.10511138,90584.0,90575.0,0.08968]
[1731799031573,0.3608,90576.0,90570.0,0.08968]
[1731799031773,0.3608,90576.0,90567.0,0.08968]
[1731799031774,0.055173,90573.0,90567.0,0.08968]
[1731799032075,0.055176,90569.0,90564.0,0.08968]
[1731799032280,0.0308,90575.0,90564.0,0.08968]
[1731799032281,0.055178,90566.0,90564.0,0.08968]
[1731799032475,0.055179,90564.0,90563.0,0.08968]
[1731799032774,0.055179,90564.0,90563.0,0.01268]
[1731799033368,0.3608,90565.0,90552.0,0.10511138]
[1731799033369,0.055185,90553.0,90552.0,0.08968]
[1731799033569,0.3608,90555.0,90552.0,0.10003283]
[1731799033763,0.3608,90555.0,90553.0,0.11041793]
[1731799033978,0.3608,90555.0,90552.0,0.08968]
[1731799034359,0.3608,90555.0,90554.0,0.11043317]
[1731799034570,0.3608,90555.0,90552.0,0.08968]
[1731799034871,0.3608,90555.0,90553.0,0.11043073]
[1731799035988,0.055185,90554.0,90553.0,0.11043073]
[1731799038958,0.055191,90544.0,90541.0,0.00010934]
[1731799039259,0.3608,90543.0,90541.0,0.00010934]
[1731799039449,0.055192,90542.0,90541.0,0.00010934]
[1731799045759,0.0315,90553.0,90541.0,0.11055593]
[1731799046061,0.055189,90547.0,90542.0,0.01035472]
[1731799046259,0.46591138,90543.0,90542.0,0.01035472]
[1731799046446,0.055192,90542.0,90541.0,0.00010934]
[1731799047650,0.055192,90542.0,90525.0,0.08968]
[1731799047651,0.46731139,90543.0,90525.0,0.27415845]
[1731799047853,0.055199,90532.0,90526.0,0.01035581]
[1731799048054,0.055199,90532.0,90531.0,0.11044659]
[1731799048261,0.055199,90532.0,90525.0,0.08968]
[1731799048562,0.055199,90532.0,90528.0,0.11044659]
[1731799048766,0.055199,90532.0,90529.0,0.01045089]
[1731799048970,0.055199,90532.0,90530.0,0.01035587]
[1731799049158,0.055199,90532.0,90531.0,0.01035587]
[1731799050052,0.46591138,90543.0,90531.0,0.12081466]
[1731799050053,0.055195,90538.0,90531.0,0.12081466]
[1731799050248,0.055195,90538.0,90531.0,0.16565779]
[1731799050868,0.13097794,90552.0,90535.0,0.3608]
[1731799051080,0.055182,90559.0,90536.0,0.08968]
[1731799051081,0.055194,90540.0,90536.0,0.08968]
[1731799051366,0.055194,90539.0,90536.0,0.08968]
[1731799051564,0.055194,90539.0,90537.0,0.11045513]
[1731799052480,0.055191,90545.0,90537.0,0.11045513]
[1731799052651,0.055191,90545.0,90538.0,0.055195]
[1731799053264,0.055191,90545.0,90539.0,0.1104472]
[1731799053661,0.0315,90553.0,90539.0,0.1104472]
[1731799053662,0.055192,90543.0,90539.0,0.1104472]
[1731799057761,0.3608,90550.0,90542.0,0.10511138]
[1731799058080,0.36393695,90561.0,90549.0,0.10511138]
[1731799058263,0.05683795,90561.0,90551.0,0.055186]
[1731799058882,0.05683795,90561.0,90552.0,0.1656332]
[1731799059168,0.05683795,90561.0,90552.0,0.055186]
[1731799059667,0.05683795,90561.0,90553.0,0.1104289]
[1731799060085,0.055184,90555.0,90553.0,0.1104289]
[1731799060258,0.3608,90560.0,90548.0,0.08964]
[1731799060259,0.10511138,90556.0,90548.0,0.08964]
[1731799060566,0.10511138,90556.0,90541.0,0.3608]
[1731799060567,0.055192,90542.0,90541.0,0.3608]
[1731799060763,0.055192,90542.0,90541.0,0.45044]
[1731799061872,0.055192,90542.0,90541.0,0.46079453]
[1731799062064,0.055192,90542.0,90541.0,0.09999453]
[1731799062267,0.415992,90542.0,90541.0,0.09999453]
[1731799062469,0.46591138,90542.0,90532.0,0.3608]
[1731799062668,0.46591138,90542.0,90533.0,0.08964]
[1731799062969,0.46591138,90542.0,90533.0,0.01264]
[1731799062970,0.055197,90534.0,90533.0,0.01264]
[1731799064568,0.055199,90530.0,90527.0,0.26331571]
[1731799064863,0.055199,90530.0,90511.0,0.3941]
[1731799064864,0.055199,90530.0,90523.0,0.26331571]
[1731799065174,0.055199,90530.0,90525.0,0.08964]
[1731799066363,0.05533023,90530.0,90515.0,0.62411571]
[1731799066673,0.05533023,90530.0,90515.0,0.45048]
[1731799066875,0.05533023,90530.0,90529.0,6.58e-06]
[1731799068784,0.46983281,90530.0,90529.0,6.58e-06]
[1731799069666,0.5798829,90530.0,90529.0,6.58e-06]
[1731799069872,0.41613023,90530.0,90529.0,6.58e-06]
[1731799070476,0.57982254,90530.0,90529.0,6.58e-06]
[1731799071167,0.63365993,90530.0,90529.0,6.58e-06]
[1731799071679,0.46996762,90530.0,90529.0,6.58e-06]
[1731799072165,0.55687224,90530.0,90512.0,0.00165695]
[1731799072368,0.41601,90513.0,90512.0,0.00165695]
[1731799075380,0.3608,90513.0,90512.0,0.00165695]
[1731799075566,0.16364879,90536.0,90512.0,0.00165695]
[1731799075567,0.1960508,90546.0,90544.0,0.055191]
[1731799075878,0.1960508,90546.0,90513.0,0.33678669]
[1731799075879,0.0322,90576.0,90568.0,0.055176]
[1731799076071,0.0322,90576.0,90569.0,0.08968]
[1731799076277,0.0322,90576.0,90570.0,0.08968]
[1731799076465,0.0322,90576.0,90567.0,0.3608]
[1731799076671,0.0322,90576.0,90571.0,0.11044232]
[1731799077177,0.0322,90576.0,90569.0,0.11041]
[1731799077374,9.839e-05,90577.0,90575.0,0.3608]
[1731799077776,9.839e-05,90577.0,90575.0,0.2838]
[1731799077976,9.839e-05,90577.0,90576.0,0.11040452]
[1731799082679,9.839e-05,90577.0,90568.0,9.173e-05]
[1731799083081,0.055174,90572.0,90568.0,9.173e-05]
[1731799083486,9.839e-05,90577.0,90571.0,0.055174]
[1731799083677,9.839e-05,90577.0,90576.0,0.055171]
[1731799083874,9.839e-05,90577.0,90576.0,0.52108238]
[1731799084284,9.839e-05,90577.0,90576.0,0.72108934]
[1731799084493,0.05339342,90599.0,90586.0,0.055165]
[1731799084783,0.05339342,90599.0,90589.0,0.3608]
[1731799084784,0.08991745,90594.0,90589.0,0.3608]
[1731799084984,0.03475645,90594.0,90589.0,0.3608]
[1731799085194,0.03475645,90594.0,90592.0,0.055161]
[1731799085487,9.308e-05,90593.0,90592.0,0.055161]
[1731799087086,0.055162,90592.0,90589.0,0.3608]
[1731799087288,9.308e-05,90593.0,90580.0,0.144769]
[1731799087586,0.05517,90579.0,90577.0,0.11038441]
[1731799087995,9.308e-05,90593.0,90576.0,0.3608]
[1731799088178,0.055173,90574.0,90572.0,0.0896]
[1731799088780,0.055173,90574.0,90572.0,0.144774]
[1731799089492,0.055173,90574.0,90572.0,0.0896]
[1731799089692,0.055176,90569.0,90568.0,9.173e-05]
[1731799090589,0.055186,90553.0,90550.0,0.055187]
[1731799090799,0.055186,90553.0,90547.0,0.3608]
[1731799090800,0.055186,90553.0,90551.0,0.05684246]
[1731799091096,0.0339,90568.0,90551.0,0.05684246]
[1731799091097,0.055183,90557.0,90553.0,0.055185]
[1731799091288,0.0339,90568.0,90553.0,0.055185]
[1731799091480,0.0339,90568.0,90551.0,0.00165646]
[1731799091678,0.055183,90557.0,90556.0,0.00010127]
[1731799092689,0.055183,90557.0,90549.0,0.34074273]
[1731799093094,0.055183,90557.0,90552.0,0.11042829]
[1731799093286,0.055183,90557.0,90549.0,0.34074273]
[1731799093489,0.055183,90557.0,90554.0,0.055185]
[1731799093681,0.0051,90565.0,90550.0,0.11042829]
[1731799093881,0.0051,90565.0,90556.0,0.0001265]
[1731799094084,0.0339,90568.0,90556.0,0.0001265]
[1731799094381,0.055183,90557.0,90556.0,0.0001265]
[1731799098090,0.089077,90568.0,90556.0,0.0001265]
[1731799098280,0.089077,90568.0,90566.0,0.055177]
[1731799098877,0.089077,90568.0,90567.0,0.11042829]
[1731799099393,0.089077,90568.0,90561.0,0.08964]
[1731799099394,0.05518,90562.0,90561.0,0.08964]
[1731799101106,0.0339,90568.0,90566.0,0.055177]
[1731799101309,0.0339,90568.0,90561.0,0.56086219]
[1731799101310,0.055171,90577.0,90561.0,0.56142219]
[1731799101513,0.055171,90577.0,90572.0,0.055174]
[1731799102410,0.055172,90575.0,90573.0,0.11040635]
[1731799102623,0.0374,90584.0,90573.0,0.11040635]
[1731799102624,0.0323,90584.0,90573.0,0.11040635]
[1731799102932,0.0323,90584.0,90582.0,0.055167]
[1731799103229,0.0323,90584.0,90583.0,0.3608]
[1731799103818,0.0323,90584.0,90583.0,0.47120147]
[1731799104027,0.00165645,90594.0,90592.0,0.055162]
[1731799104213,0.00165645,90594.0,90592.0,0.415962]
[1731799104624,0.00165645,90594.0,90592.0,0.52635738]
[1731799105515,0.00165645,90594.0,90592.0,0.85751738]
[1731799105717,0.0051,90604.0,90603.0,0.055155]
[1731799105907,0.3936,90619.0,90606.0,0.055153]
[1731799105908,0.055149,90614.0,90606.0,0.055153]
[1731799106336,0.055149,90614.0,90607.0,0.16553641]
[1731799106619,0.0334,90618.0,90614.0,0.055148]
[1731799106819,0.00013159,90615.0,90603.0,0.3608]
[1731799107036,0.055154,90605.0,90603.0,0.3608]
[1731799107330,0.055154,90605.0,90586.0,0.055165]
[1731799107331,0.3608,90605.0,90586.0,0.055165]
[1731799107502,0.055161,90593.0,90586.0,0.055165]
[1731799107704,0.055163,90590.0,90588.0,0.03335578]
[1731799107916,0.3608,90593.0,90581.0,0.08956]
[1731799108113,0.3608,90593.0,90579.0,0.3608]
[1731799108290,0.3932,90594.0,90589.0,0.11038806]
[1731799108490,0.3932,90594.0,90574.0,0.02207477]
[1731799108701,0.3932,90594.0,90567.0,0.15806282]
[1731799108702,0.3608,90586.0,90567.0,0.08956]
[1731799109091,0.0313,90585.0,90562.0,0.00165627]
[1731799109401,0.3608,90576.0,90568.0,0.11039477]
[1731799109629,0.055179,90564.0,90562.0,0.00165627]
[1731799111815,0.055183,90557.0,90540.0,0.08956]
[1731799112098,0.055183,90557.0,90531.0,0.26266932]
[1731799112099,0.055183,90557.0,90543.0,0.415991]
[1731799112605,0.055183,90557.0,90545.0,0.05519]
[1731799112988,0.055183,90557.0,90543.0,0.3608]
[1731799113190,0.055183,90557.0,90552.0,0.3608]
[1731799113708,0.055183,90557.0,90543.0,0.3608]
[1731799113709,0.055183,90557.0,90544.0,0.08956]
[1731799114098,0.055183,90557.0,90545.0,0.05519]
[1731799114603,0.055183,90557.0,90551.0,0.3608]
[1731799114798,0.0321,90566.0,90551.0,0.3608]
[1731799115099,0.0321,90566.0,90551.0,0.415986]
[1731799115100,0.05518,90562.0,90551.0,0.415986]
[1731799115299,0.0321,90566.0,90551.0,0.3608]
[1731799115503,0.055181,90560.0,90551.0,0.3608]
[1731799116006,0.0321,90566.0,90559.0,0.055182]
[1731799116190,0.060273,90574.0,90563.0,0.21324182]
[1731799116389,0.06027,90579.0,90568.0,0.3608]
[1731799116605,0.05517,90579.0,90568.0,0.3608]
[1731799116902,0.055171,90578.0,90568.0,0.3608]
[1731799117099,0.055171,90577.0,90569.0,0.11040756]
[1731799117302,0.055172,90575.0,90569.0,0.11040756]
[1731799117599,0.3659,90585.0,90569.0,0.11040756]
[1731799117801,0.3608,90577.0,90556.0,0.02221413]
[1731799118003,0.055183,90557.0,90556.0,0.0001265]
[1731799122714,0.0672,90566.0,90545.0,0.39561413]
[1731799122896,0.055185,90555.0,90545.0,0.39561413]
[1731799123095,0.055185,90554.0,90549.0,0.11042829]
[1731799123294,0.055185,90554.0,90545.0,0.39561413]
[1731799123696,0.055186,90553.0,90546.0,0.11042951]
[1731799123919,0.055186,90553.0,90546.0,0.11051711]
[1731799124210,0.055186,90552.0,90546.0,0.11051711]
[1731799124405,0.055187,90551.0,90546.0,0.11051711]
[1731799125421,0.055187,90551.0,90548.0,0.02209165]
[1731799125709,0.055188,90550.0,90548.0,0.02209165]
[1731799125924,0.3608,90549.0,90548.0,0.02209165]
[1731799126218,0.055188,90548.0,90546.0,6e-07]
[1731799126393,0.055188,90548.0,90510.0,0.3608]
[1731799126394,0.055195,90537.0,90510.0,0.3608]
[1731799126693,0.055211,90511.0,90510.0,0.3608]
[1731799126894,0.416011,90511.0,90491.0,0.00165701]
[1731799127099,0.416017,90501.0,90491.0,0.00165701]
[1731799127296,0.05533302,90501.0,90493.0,0.00013016]
[1731799131919,0.05533302,90501.0,90496.0,0.05522]
[1731799133009,0.05533302,90501.0,90493.0,0.00013016]
[1731799133209,0.05533302,90501.0,90497.0,0.055219]
[1731799133703,0.05533302,90501.0,90496.0,0.3608]
[1731799133704,0.05533302,90501.0,90499.0,0.055218]
[1731799133912,0.00011602,90501.0,90499.0,0.055218]
[1731799134116,0.00011602,90501.0,90500.0,0.45819944]
[1731799135115,0.00011602,90501.0,90500.0,0.81899944]
[1731799135417,0.055206,90520.0,90511.0,0.055211]
[1731799135606,0.055206,90519.0,90513.0,0.3608]
[1731799135804,0.055206,90519.0,90512.0,0.08964]
[1731799136014,0.0326,90524.0,90512.0,0.08964]